bitfinex-derivatives/quotes_ETHF0:USTF0_20250404
["timestamp","ask_amount","ask_price","bid_price","bid_amount"]
[1743732475695,1.11281,1798.0,1797.8,3.14689]
[1743732475995,3.23391,1798.0,1797.8,3.14689]
[1743732476198,1.11283,1797.9,1797.8,3.14689]
[1743732476391,2.1211,1797.9,1797.8,2.034]
[1743732476696,1.11281,1798.0,1797.8,3.14684]
[1743732476893,1.11283,1797.9,1797.8,3.14684]
[1743732477091,1.11289,1797.8,1797.7,0.00836074]
[1743732477299,2.1211,1797.8,1797.7,0.00836074]
[1743732477491,3.15246,1798.1,1797.7,7.11145074]
[1743732477686,5.27356,1798.1,1798.0,1.11276]
[1743732477890,5.2735,1798.1,1798.0,1.11276]
[1743732478091,5.2735,1798.1,1797.9,1.11278]
[1743732478385,5.2735,1798.1,1798.0,2.0296]
[1743732478585,3.2338,1798.1,1798.0,3.14236]
[1743732478997,2.1211,1798.1,1798.0,3.14236]
[1743732479192,1.11287,1797.9,1797.7,1.12127074]
[1743732479397,1.11281,1798.0,1797.8,1.11286]
[1743732479597,2.1646,1797.9,1797.8,3.26956]
[1743732480094,2.1646,1797.9,1797.7,0.00836074]
[1743732480296,1.11289,1797.8,1797.7,0.00836074]
[1743732480500,3.27746,1797.9,1797.7,3.27799074]
[1743732481996,2.1646,1797.9,1797.7,3.27799074]
[1743732482196,2.1646,1797.9,1797.7,3.27798074]
[1743732482403,2.1646,1797.9,1797.8,1.11289]
[1743732482902,3.27743,1797.9,1797.8,1.11289]
[1743732483402,2.1646,1797.9,1797.8,1.11289]
[1743732484206,2.0952,1798.0,1797.9,1.11283]
[1743732484605,3.27146,1798.1,1798.0,1.11276]
[1743732484905,1.11264,1798.2,1798.1,1.1127]
[1743732485206,1.11264,1798.2,1798.1,1.11266]
[1743732485594,3.32338,1798.3,1798.2,1.11264]
[1743732485799,3.32338,1798.3,1798.1,2.132]
[1743732486200,3.32338,1798.3,1798.2,1.11264]
[1743732486505,2.2108,1798.3,1798.2,1.11264]
[1743732487008,5.245,1798.5,1798.1,2.132]
[1743732487319,3.32337,1798.4,1798.3,1.11258]
[1743732487606,3.32337,1798.4,1798.2,1.11259]
[1743732487805,1.11258,1798.3,1798.2,3.24459]
[1743732488706,1.11258,1798.3,1798.2,3.24464]
[1743732489605,1.11264,1798.2,1798.1,1.11265]
[1743732489804,1.1127,1798.1,1798.0,3.29284]
[1743732490014,1.11278,1798.0,1797.9,1.11278]
[1743732490309,1.11283,1797.9,1797.8,1.11285]
[1743732491007,3.21933,1797.9,1797.8,1.11285]
[1743732492710,1.11289,1797.8,1797.7,0.00836074]
[1743732492912,3.21939,1797.8,1797.7,2.20346074]
[1743732493912,3.21939,1797.8,1797.7,0.00836074]
[1743732494205,1.11307,1797.5,1797.4,2.129]
[1743732494413,1.1132,1797.3,1797.2,2.129]
[1743732495107,3.25766,1797.4,1797.2,2.129]
[1743732495310,1.11311,1797.5,1797.3,1.1132]
[1743732495612,3.25752,1797.6,1797.4,2.129]
[1743732495807,3.25755,1797.6,1797.4,3.24212]
[1743732496112,1.11305,1797.6,1797.4,3.24212]
[1743732496315,4.85,1797.7,1797.5,1.11305]
[1743732496510,5.96301,1797.7,1797.6,2.129]
[1743732497410,8.09681,1797.7,1797.6,2.129]
[1743732497913,1.11312,1797.5,1797.3,1.11319]
[1743732498216,1.11312,1797.5,1797.4,2.0493]
[1743732498516,4.85,1797.7,1797.6,1.11301]
[1743732498715,5.96295,1797.7,1797.6,1.11301]
[1743732498918,1.11295,1797.7,1797.6,1.11301]
[1743732499216,1.11289,1797.8,1797.6,1.11301]
[1743732499517,1.11289,1797.8,1797.7,2.0493]
[1743732499715,2.14216074,1797.9,1797.7,2.0493]
[1743732499911,1.11297,1797.7,1797.5,1.11307]
[1743732500116,2.0392,1797.6,1797.5,2.0505]
[1743732500317,2.0392,1797.6,1797.5,3.16357]
[1743732500913,1.11293,1797.8,1797.6,1.11299]
[1743732501117,1.11289,1797.8,1797.7,2.0505]
[1743732501416,5.25536074,1797.9,1797.7,2.0505]
[1743732501711,0.00836074,1797.9,1797.8,1.11289]
[1743732503411,1.11259,1798.3,1798.1,1.11266]
[1743732503613,2.1558,1798.3,1798.2,1.11264]
[1743732503819,3.26838,1798.3,1798.1,1.11267]
[1743732504117,2.1558,1798.3,1798.1,1.1127]
[1743732504319,3.26842,1798.3,1798.1,1.1127]
[1743732504816,1.1127,1798.1,1798.0,0.00836074]
[1743732506020,3.2685,1798.1,1798.0,0.00836074]
[1743732508315,5.7685,1798.1,1798.0,0.00836074]
[1743732509015,3.2685,1798.1,1798.0,0.00836074]
[1743732512524,3.2685,1798.1,1797.8,2.1446]
[1743732512525,2.78221,1797.9,1797.2,9.1778]
[1743732512727,4.32082,1797.7,1797.6,1.11297]
[1743732512933,1.11302,1797.7,1797.6,1.11297]
[1743732513432,1.11301,1797.6,1797.5,3.25762]
[1743732513633,3.21981,1797.6,1797.5,3.26598074]
[1743732513838,3.21981,1797.6,1797.5,2.15296074]
[1743732514332,3.21981,1797.6,1797.5,0.00836074]
[1743732514530,8.0518,1797.9,1797.6,1.11301]
[1743732514734,8.0518,1797.9,1797.7,4.3563]
[1743732514735,9.16463,1797.9,1797.7,4.3563]
[1743732515030,5.46341,1798.0,1797.7,5.46923]
[1743732515231,3.21961,1798.0,1797.7,5.46923]
[1743732515621,2.1068,1798.0,1797.7,4.3563]
[1743732515932,1.11289,1797.8,1797.7,4.3563]
[1743732516129,1.11288,1797.9,1797.7,4.3563]
[1743732516831,1.11289,1797.8,1797.7,4.3563]
[1743732517130,1.11286,1797.9,1797.7,4.3563]
[1743732517330,1.11289,1797.8,1797.7,4.3563]
[1743732517833,1.11288,1797.9,1797.7,4.3563]
[1743732518131,3.35678,1797.9,1797.7,4.3563]
[1743732518631,3.35678,1797.9,1797.7,5.46925]
[1743732518932,1.11282,1798.0,1797.7,5.46925]
[1743732519736,2.0251,1798.0,1797.8,1.11289]
[1743732520031,2.0251,1798.0,1797.9,2.1139]
[1743732520733,3.13787,1798.0,1797.7,1.11291]
[1743732520934,3.13787,1798.0,1797.7,3.22681]
[1743732521127,2.0251,1797.9,1797.7,3.22681]
[1743732521522,3.2078,1798.1,1797.7,4.6139]
[1743732521728,63.9838,1798.9,1798.0,8.77164]
[1743732522032,63.9838,1798.9,1798.6,1.11239]
[1743732522033,2.0977,1798.7,1798.6,1.11239]
[1743732526636,4.1411,1798.8,1798.7,1.11233]
[1743732526828,6.2582,1798.8,1798.7,1.11233]
[1743732537843,68.8158,1798.9,1798.8,1.11227]
[1743732538438,71.0869,1798.9,1798.8,1.11227]
[1743732538636,1.11239,1798.7,1798.6,1.11239]
[1743732538839,1.11239,1798.6,1798.5,0.00836074]
[1743732539039,5.43929,1798.6,1798.5,0.00836074]
[1743732539747,5.43929,1798.6,1798.5,1.12082074]
[1743732541145,5.43929,1798.6,1798.5,0.00836074]
[1743732541741,6.8269,1798.6,1798.1,2.78176]
[1743732541941,1.11258,1798.4,1798.3,1.11254]
[1743732542148,4.32038,1798.4,1798.3,1.11254]
[1743732542451,7.6555,1798.4,1798.3,1.11254]
[1743732543150,5.4709,1798.4,1798.3,1.11254]
[1743732543943,6.58343,1798.4,1798.2,3.30805074]
[1743732544444,3.29708,1798.3,1798.2,2.19546074]
[1743732544649,3.29708,1798.3,1798.2,0.00836074]
[1743732544845,1.11286,1797.9,1797.7,1.11294]
[1743732545044,1.11281,1798.0,1797.7,1.11295]
[1743732545251,1.11281,1798.0,1797.8,2.1871]
[1743732545454,2.1845,1797.9,1797.8,2.1871]
[1743732545947,1.1128,1798.0,1797.8,3.29999]
[1743732546146,11.39835,1798.1,1797.8,3.29999]
[1743732546349,11.39835,1798.1,1797.9,2.0791]
[1743732547554,1.11276,1798.0,1797.9,2.0791]
[1743732548146,1.11289,1797.8,1797.7,4.32911074]
[1743732548347,1.11289,1797.8,1797.7,0.00836074]
[1743732548648,6.56947,1797.9,1797.7,3.20041074]
[1743732548954,3.36167,1797.9,1797.8,2.2615]
[1743732549650,6.56947,1797.9,1797.8,2.2615]
[1743732550251,6.56947,1797.9,1797.8,3.37439]
[1743732550452,3.36167,1797.9,1797.8,3.37439]
[1743732551154,3.36167,1797.9,1797.8,2.2615]
[1743732551655,3.2078,1798.1,1798.0,1.11276]
[1743732551851,1.11278,1798.0,1797.9,2.2522]
[1743732552050,3.23118,1798.0,1797.9,2.2522]
[1743732552353,1.11289,1797.8,1797.7,0.00836074]
[1743732552945,3.23129,1797.8,1797.7,2.17876074]
[1743732553455,3.23129,1797.8,1797.7,3.29171074]
[1743732554046,3.23129,1797.8,1797.7,2.17876074]
[1743732555251,3.23129,1797.8,1797.7,0.00836074]
[1743732555447,5.47149,1797.8,1797.7,0.00836074]
[1743732556050,12.42322,1797.8,1797.1,3.2078]
[1743732556350,3.2078,1797.5,1797.4,1.11314]
[1743732556555,1.11307,1797.5,1797.4,1.11314]
[1743732556852,1.11314,1797.4,1797.3,3.30525]
[1743732557054,3.35804,1797.4,1797.3,3.30525]
[1743732559556,2.2449,1797.4,1797.3,3.30525]
[1743732559764,3.35804,1797.4,1797.3,3.30525]
[1743732560747,3.35804,1797.4,1797.3,2.1921]
[1743732561252,1.1132,1797.3,1797.2,0.00836074]
[1743732561459,3.3687,1797.3,1797.2,0.00836074]
[1743732566065,3.3687,1797.3,1797.2,2.22736074]
[1743732566455,1.1132,1797.3,1797.2,2.22736074]
[1743732566657,1.1132,1797.3,1797.2,3.34062074]
[1743732566960,1.11318,1797.4,1797.3,1.11319]
[1743732567263,1.11318,1797.4,1797.3,2.1406]
[1743732567660,1.11318,1797.4,1797.3,3.2538]
[1743732567865,1.12146074,1797.5,1797.3,2.1406]
[1743732569063,0.00836074,1797.5,1797.3,2.1406]
[1743732569255,0.00836074,1797.5,1797.4,3.24274]
[1743732569767,0.00836074,1797.5,1797.4,5.38334]
[1743732570060,2.7823,1797.8,1797.4,7.88334]
[1743732570061,1.1129,1797.8,1797.4,7.88334]
[1743732570263,4.32064,1797.9,1797.5,4.92999]
[1743732570454,4.32064,1797.9,1797.7,1.1129]
[1743732570657,4.32064,1797.9,1797.8,2.1473]
[1743732571060,1.11305,1797.6,1797.4,3.2427]
[1743732571254,1.11307,1797.5,1797.4,3.24272]
[1743732571466,1.11307,1797.5,1797.4,4.2769]
[1743732571761,1.11307,1797.5,1797.4,5.39004]
[1743732572359,1.11317,1797.4,1797.3,1.11317]
[1743732572567,1.11312,1797.5,1797.4,1.11312]
[1743732572768,3.21302,1797.5,1797.4,1.11312]
[1743732573368,2.0999,1797.5,1797.4,1.11312]
[1743732573663,3.21297,1797.5,1797.4,1.11312]
[1743732574169,1.11314,1797.4,1797.3,3.30538]
[1743732574566,2.0999,1797.5,1797.2,0.00836074]
[1743732574770,1.1132,1797.3,1797.2,0.00836074]
[1743732575158,3.2982,1797.3,1797.2,0.00836074]
[1743732575367,5.4746,1797.3,1797.2,0.00836074]
[1743732577271,5.4746,1797.3,1797.2,1.12162074]
[1743732577672,4.3614,1797.3,1797.2,1.12162074]
[1743732577873,2.185,1797.3,1797.2,1.12162074]
[1743732578075,4.818,1797.5,1797.3,1.1132]
[1743732578267,5.93113,1797.5,1797.4,2.2764]
[1743732578470,7.99463,1797.5,1797.4,2.2764]
[1743732578773,4.818,1797.5,1797.4,3.38954]
[1743732578970,1.11301,1797.6,1797.5,1.11307]
[1743732579165,1.11301,1797.6,1797.5,2.2764]
[1743732579566,1.11301,1797.6,1797.5,3.38947]
[1743732579877,1.11299,1797.7,1797.5,2.2764]
[1743732580079,1.1129,1797.8,1797.7,1.11295]
[1743732580575,0.00836074,1798.0,1797.9,1.11283]
[1743732580869,1.12112074,1798.0,1797.8,5.54874]
[1743732581060,1.12117074,1798.0,1797.8,3.30269]
[1743732581265,1.11283,1797.9,1797.8,3.30269]
[1743732581670,1.12112074,1798.0,1797.9,1.11283]
[1743732582165,0.00836074,1798.0,1797.9,1.11283]
[1743732582472,0.00836074,1798.0,1797.9,6.82063]
[1743732582769,2.1997,1798.5,1798.0,2.78192]
[1743732582974,1.11244,1798.6,1798.4,1.11252]
[1743732583179,1.11246,1798.5,1798.4,2.173]
[1743732583675,2.1997,1798.6,1798.4,3.28548]
[1743732583982,2.20806074,1798.6,1798.4,2.173]
[1743732584273,2.20806074,1798.6,1798.4,3.28548]
[1743732585176,3.32046074,1798.6,1798.4,3.28548]
[1743732585575,2.20806074,1798.6,1798.4,3.28548]
[1743732585776,3.32047074,1798.6,1798.4,3.28547]
[1743732586975,2.20806074,1798.6,1798.5,1.11246]
[1743732587777,0.00836074,1798.6,1798.5,1.11246]
[1743732589780,0.00836074,1798.6,1798.5,4.32026]
[1743732590882,0.00836074,1798.6,1798.5,1.11246]
[1743732591176,3.2078,1799.0,1798.9,1.11221]
[1743732591378,10.2502,1799.0,1798.9,1.11221]
[1743732591580,11.36235,1799.0,1798.9,1.11221]
[1743732591775,11.36235,1799.0,1798.8,3.21173]
[1743732591976,11.36235,1799.0,1798.9,1.11221]
[1743732592178,11.36235,1799.0,1798.8,3.21175]
[1743732592179,1.11221,1798.9,1798.8,3.21175]
[1743732592476,3.27561,1798.9,1798.8,3.21175]
[1743732592676,2.1634,1798.9,1798.8,3.21175]
[1743732593279,3.27561,1798.9,1798.8,3.21175]
[1743732593480,2.1634,1798.9,1798.8,3.21175]
[1743732594281,3.27561,1798.9,1798.8,3.21175]
[1743732594685,2.1634,1798.9,1798.8,3.21175]
[1743732595777,3.27561,1798.9,1798.8,3.21175]
[1743732595977,2.1634,1798.9,1798.8,3.21175]
[1743732596582,3.27561,1798.9,1798.8,1.11225]
[1743732596781,1.1123,1798.8,1798.7,1.11231]
[1743732597080,2.2209,1798.8,1798.7,1.11231]
[1743732597383,4.31999,1799.0,1798.9,1.11221]
[1743732597686,1.11221,1798.9,1798.8,3.23262]
[1743732598284,3.2078,1799.0,1798.8,2.1204]
[1743732598684,3.37861,1798.9,1798.8,3.23262]
[1743732599388,2.2664,1798.9,1798.8,3.23262]
[1743732599886,3.37861,1798.9,1798.8,3.23262]
[1743732600079,2.2664,1798.9,1798.8,3.23262]
[1743732600582,3.37861,1798.9,1798.8,3.23262]
[1743732600978,2.2664,1798.9,1798.8,3.23262]
[1743732601386,4.31999,1799.0,1798.9,1.11221]
[1743732601586,6.56859,1799.0,1798.9,3.27651]
[1743732601981,3.2078,1799.0,1798.9,3.27651]
[1743732602187,5.57246,1799.2,1799.1,1.11208]
[1743732602389,1.11208,1799.1,1799.0,3.27639]
[1743732602588,3.36068,1799.1,1799.0,3.27639]
[1743732603190,3.36068,1799.1,1799.0,2.1643]
[1743732603388,3.36068,1799.1,1799.0,3.27645]
[1743732603888,3.36068,1799.1,1799.0,1.11215]
[1743732606396,4.31983,1799.3,1799.2,1.11202]
[1743732606597,1.11202,1799.2,1799.1,3.38772]
[1743732606790,3.33712,1799.2,1799.1,3.38772]
[1743732607094,2.2251,1799.2,1799.1,3.38772]
[1743732607689,3.33712,1799.2,1799.1,3.38772]
[1743732608298,3.33712,1799.2,1799.1,2.2757]
[1743732608489,3.33712,1799.2,1799.1,3.38778]
[1743732608689,3.33712,1799.2,1799.1,2.2757]
[1743732608890,3.33712,1799.2,1799.1,3.38778]
[1743732609093,3.33712,1799.2,1799.1,2.2757]
[1743732609294,3.33712,1799.2,1799.1,3.38778]
[1743732609495,2.2251,1799.2,1798.8,5.3022]
[1743732609690,2.2251,1799.1,1798.9,2.1896]
[1743732609896,1.11215,1799.0,1798.9,2.1896]
[1743732610296,1.11215,1799.0,1798.9,3.30181]
[1743732610799,1.11215,1799.0,1798.9,3.30177]
[1743732611401,3.33724,1799.1,1799.0,1.11215]
[1743732611594,1.11208,1799.1,1799.0,3.33465]
[1743732611795,2.1762,1799.2,1799.0,2.2225]
[1743732611997,1.11206,1799.2,1799.1,3.33458]
[1743732612699,8.12336,1799.3,1798.9,1.11215]
[1743732613000,2.78025,1799.1,1798.9,1.1122]
[1743732613187,1.11221,1799.0,1798.9,1.1122]
[1743732613589,1.11221,1798.9,1798.8,6.41441]
[1743732613800,1.11209,1799.1,1799.0,1.11215]
[1743732613995,3.37939,1799.1,1798.9,1.11217]
[1743732614196,3.37939,1799.1,1798.9,3.37497]
[1743732614396,2.2673,1799.0,1798.9,3.37497]
[1743732615099,3.37945,1799.0,1798.9,3.37497]
[1743732615403,2.2673,1799.0,1798.9,3.37497]
[1743732616295,2.0943,1799.2,1798.9,2.2628]
[1743732616602,2.1531,1799.4,1799.3,1.11196]
[1743732617496,1.11205,1799.2,1798.9,2.78042]
[1743732617691,5.55378,1799.1,1798.9,3.34255]
[1743732617899,2.2549,1799.0,1798.9,1.11215]
[1743732618299,3.36705,1799.0,1798.9,1.11215]
[1743732618505,5.48385,1799.0,1798.9,1.11215]
[1743732619801,4.3717,1799.0,1798.9,1.11215]
[1743732620198,5.48385,1799.0,1798.8,4.4627]
[1743732620397,4.3717,1799.0,1798.9,1.11221]
[1743732620704,4.3717,1799.0,1798.9,3.37471]
[1743732621405,4.3717,1799.0,1798.8,2.2323]
[1743732621604,1.11221,1798.9,1798.8,3.34453]
[1743732621903,3.25371,1798.9,1798.8,3.34453]
[1743732622404,2.1415,1798.9,1798.8,3.34453]
[1743732622995,3.25371,1798.9,1798.8,3.34453]
[1743732624108,3.25371,1798.9,1798.8,1.11223]
[1743732624407,3.229,1799.0,1798.9,1.11221]
[1743732624802,5.282,1799.0,1798.9,1.11221]
[1743732625298,4.1698,1799.0,1798.9,1.11221]
[1743732625502,11.29572,1799.1,1799.0,1.11215]
[1743732625699,8.08792,1799.1,1799.0,1.11215]
[1743732626098,6.9758,1799.1,1799.0,1.11215]
[1743732626305,2.1868,1799.1,1799.0,1.11215]
[1743732626798,3.29888,1799.1,1799.0,3.35515]
[1743732627007,2.1868,1799.1,1799.0,3.35515]
[1743732627199,3.29888,1799.1,1799.0,3.35515]
[1743732627400,3.29888,1799.1,1799.0,2.243]
[1743732627701,5.46958,1799.1,1799.0,2.243]
[1743732627903,4.3575,1799.1,1799.0,3.35515]
[1743732628103,2.1707,1799.1,1799.0,3.35515]
[1743732629611,3.28278,1799.1,1799.0,3.35515]
[1743732629807,2.1707,1799.1,1799.0,3.35515]
[1743732630010,3.28278,1799.1,1799.0,3.35515]
[1743732630714,2.1707,1799.1,1799.0,3.35515]
[1743732631207,2.1707,1799.1,1798.9,2.2276]
[1743732631511,1.11223,1798.9,1798.8,1.11224]
[1743732631711,10.39686,1799.1,1798.8,1.11221]
[1743732631907,1.11221,1798.9,1798.8,1.11221]
[1743732632909,1.11233,1798.8,1798.5,1.11246]
[1743732633211,1.11239,1798.6,1798.5,4.2991]
[1743732633406,8.19201,1798.8,1798.3,3.21616074]
[1743732633605,1.11252,1798.4,1798.3,3.33059074]
[1743732634008,3.31592,1798.4,1798.3,3.33059074]
[1743732634511,3.31592,1798.4,1798.3,2.21806074]
[1743732635309,3.31592,1798.4,1798.3,0.00836074]
[1743732636405,7.97511,1798.5,1798.4,1.11252]
[1743732636608,7.97511,1798.5,1798.4,3.19872]
[1743732637010,4.85095,1798.7,1798.4,4.86744]
[1743732637011,2.0701,1798.7,1798.4,4.86744]
[1743732637311,4.782,1798.8,1798.7,1.11233]
[1743732637312,5.89429,1798.8,1798.7,1.11233]
[1743732637510,5.89429,1798.8,1798.6,1.11234]
[1743732637813,9.10209,1798.8,1798.7,2.1309]
[1743732638112,12.3377,1798.8,1798.4,5.33639]
[1743732638318,1.11244,1798.6,1798.4,7.46729]
[1743732638611,1.11244,1798.6,1798.5,2.1309]
[1743732638910,1.11246,1798.5,1798.4,2.0726]
[1743732639705,2.1019,1798.6,1798.3,2.13926074]
[1743732639706,1.11252,1798.4,1798.3,2.13926074]
[1743732640010,1.11252,1798.4,1798.3,3.25184074]
[1743732640212,1.11252,1798.4,1798.3,2.13926074]
[1743732640405,1.11252,1798.4,1798.3,3.25184074]
[1743732640610,3.22162,1798.4,1798.3,2.13926074]
[1743732640810,3.22162,1798.4,1798.3,3.25184074]
[1743732641013,8.00387,1798.5,1798.4,1.11252]
[1743732641206,8.00387,1798.5,1798.4,2.1351]
[1743732641408,8.00387,1798.5,1798.4,3.24762]
[1743732641709,3.2078,1798.7,1798.4,2.1351]
[1743732641909,5.89335,1798.7,1798.5,4.3942]
[1743732642110,3.2078,1798.9,1798.6,2.1351]
[1743732642306,1.11214,1799.1,1798.9,1.11217]
[1743732642613,10.23728,1799.2,1799.0,3.24725]
[1743732642811,1.11208,1799.1,1799.0,3.24725]
[1743732643110,1.11208,1799.1,1799.0,2.1351]
[1743732644114,9.1252,1799.2,1798.9,3.37126]
[1743732644413,1.11213,1799.1,1798.9,2.2591]
[1743732644719,3.34473,1799.1,1799.0,2.1686]
[1743732646411,1.11215,1799.0,1798.9,3.37131]
[1743732646615,3.18715,1799.0,1798.9,3.37131]
[1743732646811,3.18715,1799.0,1798.9,2.2591]
[1743732647215,3.18715,1799.0,1798.9,4.4742]
[1743732648116,1.11227,1798.8,1798.7,4.32009]
[1743732648417,1.11227,1798.8,1798.7,6.53519]
[1743732649811,1.11227,1798.8,1798.7,3.32739]
[1743732650213,1.11233,1798.7,1798.6,4.3116]
[1743732650417,1.11233,1798.7,1798.6,2.0615]
[1743732651014,8.1175,1798.7,1798.3,2.18516074]
[1743732651321,1.11249,1798.5,1798.4,2.1582]
[1743732651721,1.11252,1798.4,1798.3,0.00836074]
[1743732651920,5.33312,1798.4,1798.3,0.00836074]
[1743732653724,1.1127,1798.1,1798.0,2.1582]
[1743732654210,1.1127,1798.1,1798.0,3.27096]
[1743732654416,3.187,1798.1,1798.0,3.27096]
[1743732655723,3.187,1798.1,1798.0,2.1582]
[1743732656916,1.11276,1798.0,1797.9,2.12723727]
[1743732657319,3.38896,1798.0,1797.9,4.20203727]
[1743732657517,3.38896,1798.0,1797.9,0.00833727]
[1743732657717,5.52086,1798.0,1797.9,0.00833727]
[1743732662517,2.2771,1798.2,1797.9,0.00833727]
[1743732662716,4.77,1798.2,1798.1,1.1127]
[1743732663118,1.11276,1798.0,1797.9,0.00833727]
[1743732663317,4.32056,1798.0,1797.9,0.00833727]
[1743732663520,1.11314,1797.4,1797.3,2.0624]
[1743732663828,1.11338,1797.1,1796.9,8.2336]
[1743732664028,3.2078,1797.2,1797.1,1.11332]
[1743732664229,5.88312,1797.5,1797.1,3.2078]
[1743732664430,1.11315,1797.4,1797.2,3.17563]
[1743732664624,4.77833727,1797.5,1797.2,2.0624]
[1743732664929,1.1132,1797.3,1797.2,2.0624]
[1743732665329,3.2872,1797.3,1797.2,2.0624]
[1743732665630,3.2872,1797.3,1797.2,3.17566]
[1743732665931,3.2872,1797.3,1797.2,2.0624]
[1743732667533,1.11326,1797.2,1797.1,1.12165727]
[1743732667833,6.59096,1797.2,1797.1,0.00833727]
[1743732668126,11.35896,1797.2,1797.1,0.00833727]
[1743732669438,1.11337,1797.1,1796.7,12.9589]
[1743732669631,2.2699,1797.0,1796.8,3.22826]
[1743732670034,3.38334,1797.0,1796.8,1.11346]
[1743732670238,1.11345,1796.9,1796.8,1.11351]
[1743732670535,3.38335,1796.9,1796.8,1.11351]
[1743732670733,2.2699,1796.9,1796.8,1.11351]
[1743732670932,3.38335,1796.9,1796.8,1.11351]
[1743732671126,2.2699,1796.9,1796.8,1.11351]
[1743732671330,11.35819,1796.9,1796.7,3.23666727]
[1743732671533,1.11351,1796.8,1796.7,2.12313727]
[1743732671737,3.32231,1796.8,1796.7,0.00833727]
[1743732671936,3.32231,1796.8,1796.7,1.12190727]
[1743732672235,3.32231,1796.8,1796.7,0.00833727]
[1743732675234,3.32231,1796.8,1796.7,1.12190727]
[1743732675534,4.766,1797.0,1796.9,1.11345]
[1743732675736,5.87938,1797.0,1796.9,1.11345]
[1743732676032,1.11345,1796.9,1796.8,7.81579]
[1743732676237,1.11345,1796.9,1796.8,5.56499]
[1743732676238,4.32125,1796.9,1796.8,5.56499]
[1743732676649,1.11351,1796.8,1796.7,0.00833727]
[1743732676838,1.11351,1796.8,1796.7,1.12190727]
[1743732677041,1.11349,1796.9,1796.8,1.11351]
[1743732677333,1.11349,1796.9,1796.7,1.12185727]
[1743732677536,1.11348,1796.9,1796.8,1.1135]
[1743732677739,1.11345,1796.9,1796.8,1.1135]
[1743732677927,3.28122,1797.0,1796.7,0.00833727]
[1743732678134,1.11335,1797.1,1797.0,1.11338]
[1743732678443,1.11326,1797.2,1797.1,1.11332]
[1743732679030,3.2078,1797.3,1797.0,4.3406]
[1743732679239,1.11332,1797.1,1797.0,4.3406]
[1743732679438,1.11331,1797.2,1797.0,5.45393]
[1743732679642,1.11332,1797.1,1797.0,5.45393]
[1743732679934,1.11331,1797.2,1797.0,5.45398]
[1743732680140,1.11331,1797.2,1797.0,4.3406]
[1743732680341,5.3756,1797.3,1797.0,4.3406]
[1743732680538,1.11331,1797.2,1797.1,1.11332]
[1743732682136,2.2129,1797.4,1797.0,7.12407]
[1743732682441,0.00833727,1797.5,1797.4,1.11314]
[1743732683437,3.2078,1798.6,1797.4,15.045]
[1743732683641,2.0654,1798.8,1798.2,2.78151]
[1743732683943,5.2732,1798.8,1798.4,5.98901]
[1743732684147,1.11235,1798.7,1798.5,1.1124]
[1743732684439,1.11246,1798.5,1798.4,3.2078]
[1743732684739,4.32026,1798.5,1798.4,0.00833727]
[1743732684939,9.08226,1798.5,1798.4,0.00833727]
[1743732685141,6.8274,1798.5,1798.4,1.12085727]
[1743732685335,7.93986,1798.5,1798.4,0.00833727]
[1743732685542,7.93786,1798.5,1798.4,0.00833727]
[1743732687244,11.14566,1798.5,1798.4,0.00833727]
[1743732687546,13.64566,1798.5,1798.4,0.00833727]
[1743732690549,11.14566,1798.5,1798.4,1.12085727]
[1743732690739,4.3276,1798.6,1798.5,1.11246]
[1743732690937,1.11243,1798.6,1798.5,1.11242]
[1743732691135,7.94419,1798.7,1798.6,1.11239]
[1743732691345,3.18719,1798.7,1798.6,1.11239]
[1743732691539,7.94319,1798.7,1798.6,1.11239]
[1743732691741,1.11239,1798.6,1798.5,3.3916]
[1743732692747,1.11239,1798.6,1798.5,2.2792]
[1743732702264,1.11239,1798.6,1798.5,3.39166]
[1743732702569,1.11239,1798.6,1798.5,2.2792]
[1743732703162,3.31269,1798.6,1798.5,2.2792]
[1743732707667,3.31269,1798.6,1798.5,3.39166]
[1743732708174,2.2003,1798.6,1798.5,3.39166]
[1743732708472,3.31269,1798.6,1798.5,6.59946]
[1743732708674,2.2003,1798.6,1798.5,6.59946]
[1743732708869,2.13893727,1798.8,1798.5,6.59946]
[1743732709067,0.00833727,1798.8,1798.7,1.11233]
[1743732709273,0.00833727,1798.8,1798.7,8.70293]
[1743732709574,0.00833727,1798.8,1798.7,11.20293]
[1743732709871,0.00833727,1798.8,1798.7,11.64214553]
[1743732711571,0.00833727,1798.8,1798.7,11.20293]
[1743732716678,0.00833727,1798.8,1798.7,17.17293]
[1743732716976,7.27e-06,1798.8,1798.7,17.17293]
[1743732720878,7.27e-06,1798.8,1798.7,14.67293]
[1743732721182,7.27e-06,1798.8,1798.7,16.78463]
[1743732723085,7.27e-06,1798.8,1798.7,1.11233]
[1743732723086,1.11227727,1798.8,1798.7,1.11233]
[1743732723781,1.11236,1798.7,1798.5,5.97]
[1743732724088,3.31999,1798.6,1798.5,7.08242]
[1743732724480,1.11246,1798.5,1798.4,0.00833727]
[1743732724880,3.22626,1798.5,1798.4,0.00833727]
[1743732726189,5.72626,1798.5,1798.4,0.00833727]
[1743732727291,2.1138,1798.5,1798.4,1.12085727]
[1743732727977,3.22626,1798.5,1798.4,1.12085727]
[1743732728180,2.1138,1798.5,1798.4,1.12085727]
[1743732730489,3.22626,1798.5,1798.4,1.12085727]
[1743732730882,3.22626,1798.5,1798.4,0.00833727]
[1743732731487,3.22626,1798.5,1798.4,1.12085727]
[1743732732391,2.1138,1798.5,1798.4,1.12085727]
[1743732732995,3.22626,1798.5,1798.4,0.00833727]
[1743732736082,5.72626,1798.5,1798.4,0.00833727]
[1743732737182,1.11282,1798.0,1797.8,5.97]